lending/lending_fUSD_20240131
["ID","MTS","AMOUNT","RATE_DAILY","PERIOD"]
[313070232,1706716830868,403.19810569,0.00021416,2]
[313070233,1706716836269,283.52752235,0.00022078,2]
[313070234,1706716837573,2186.39244281,0.00021857,2]
[313070236,1706716844452,260.81174276,0.00022078,2]
[313070237,1706716845689,1251.9227375,0.00022078,2]
[313070238,1706716850276,283.52752235,0.00022078,2]
[313070239,1706716850748,235.47214903,0.00022078,2]
[313070240,1706716850852,403.19810569,0.00021416,2]
[313070241,1706716851454,2328.73849707,0.00022078,2]
[313070242,1706716857568,1418.69385824,0.00021857,2]
[313070244,1706716860368,1857.32583047,0.00022501,2]
[313070245,1706716862438,260.81174276,0.00022078,2]
[313070247,1706716866273,283.52752235,0.00022078,2]
[313070248,1706716866742,235.47214903,0.00022078,2]
[313070249,1706716867445,2328.73849707,0.00022078,2]
[313070250,1706716872186,417.89,0.00020311,2]
[313070251,1706716872967,508.47094165,0.00021416,2]
[313070253,1706716882450,167.87596721,0.00022078,2]
[313070254,1706716884569,1656.14,0.00022277,2]
[313070255,1706716885480,1938.98977952,0.00022078,2]
[313070256,1706716885611,200.0,0.00022277,2]
[313070257,1706716889325,250.0,0.00022218,2]
[313070258,1706716890270,283.52752235,0.00021416,2]
[313070259,1706716890734,203.471084,0.00021416,2]
[313070261,1706716908274,283.52752235,0.00021416,2]
[313070263,1706716925752,164.35,0.00022162,2]
[313070264,1706716930270,283.52752235,0.00021416,2]
[313070266,1706716948284,283.52752235,0.00022162,2]
[313070268,1706716958414,604.72,0.00022271,2]
[313070269,1706716966673,176.49,0.00016712,2]
[313070271,1706716970278,295.28230981,0.00022162,2]
[313070272,1706716977342,23900.0,0.00022152,2]
[313070275,1706716990280,173.85,0.00022158,2]
[313070276,1706717003030,151.1,0.0003125,120]
[313070280,1706717062484,2000.0,0.00021837,2]
[313070281,1706717064467,3197.13386433,0.00022077,2]
[313070283,1706717083806,150.0,0.00021837,2]
[313070285,1706717101210,187.11,0.00021837,2]
[313070290,1706717152728,2313.11582133,0.00022501,2]
[313070291,1706717159860,500.0,0.00021837,2]
[313070294,1706717194642,155.45028316,0.00020697,2]
[313070296,1706717205898,250.0,0.0002184,2]
[313070298,1706717217952,182.9,0.00022004,2]
[313070299,1706717227841,-544.35199415,0.00022504,2]
[313070300,1706717227864,-257.67,0.00022505,2]
[313070301,1706717227888,-163.29628754,0.00022519,2]
[313070302,1706717227911,-352.91,0.00022548,2]
[313070303,1706717227934,-163.29628754,0.00022573,2]
[313070304,1706717228173,-417.89,0.00022574,2]
[313070305,1706717228199,-182.9,0.00022577,2]
[313070306,1706717228227,-295.804545,0.00022578,2]
[313070307,1706717228256,-200.0,0.00022604,2]
[313070308,1706717228281,-800.0,0.00022604,2]
[313070309,1706717228307,-763.88088577,0.00022619,2]
[313070311,1706717247935,257.67,0.00021998,2]
[313070312,1706717249222,257.67,0.00022135,2]
[313070313,1706717250512,257.67,0.00022272,2]
[313070314,1706717251824,446.89733168,0.00022409,2]
[313070316,1706717259336,217.0225,0.00022403,2]
[313070317,1706717259616,1121.16406462,0.00020697,2]
[313070318,1706717271590,180.1563,0.00022402,2]
[313070319,1706717272885,155.0,0.00020697,2]
[313070320,1706717273120,155.0,0.00020697,2]
[313070322,1706717281193,749.98,0.00022195,2]
[313070323,1706717293131,160.09175453,0.00020697,2]
[313070329,1706717335618,1047.6799468,0.00020697,2]
[313070335,1706717373741,205.0,0.00021874,2]
[313070336,1706717375120,250.0,0.00022236,2]
[313070340,1706717385587,503.93,0.00022177,2]
[313070347,1706717422985,23900.0,0.00022055,2]
[313070375,1706717431866,-362.1013399,0.00022615,2]
[313070376,1706717431923,-587.67166474,0.00022615,2]
[313070377,1706717432093,-190.01006269,0.00022615,2]
[313070378,1706717432102,-449.81055453,0.00022616,2]
[313070421,1706717437870,-131.58747932,0.00022616,2]
[313070422,1706717437883,-943.04853509,0.00022616,2]
[313070423,1706717437894,-123.29755823,0.00022616,2]
[313070424,1706717437934,-97.75168182,0.00022616,2]
[313070425,1706717437945,-583.66541534,0.00022617,2]
[313070426,1706717437956,-236.11911423,0.00022619,2]
[313070427,1706717437967,-163.29628754,0.00022628,2]
[313070428,1706717437984,-162.6692338,0.0002264,2]
[313070429,1706717438044,-427.11999429,0.0002264,2]
[313070430,1706717438054,-231.09751187,0.0002264,2]
[313070431,1706717438065,-150.0,0.0002264,2]
[313070432,1706717438076,-300.0,0.0002264,2]
[313070433,1706717438087,-150.0,0.0002264,2]
[313070434,1706717438322,-248.52964341,0.00022641,2]
[313070436,1706717438333,-289.12587335,0.00022641,2]
[313070437,1706717438343,-221.19263573,0.00022641,2]
[313070439,1706717438352,-163.29628754,0.00022682,2]
[313070441,1706717438364,-163.29628754,0.00022737,2]
[313070443,1706717438373,-22660.37793498,0.00022767,2]
[313070445,1706717438382,-5666.04592298,0.0002277,2]
[313070447,1706717438392,-499.99,0.00022779,2]
[313070449,1706717438401,-163.29628754,0.00022791,2]
[313070451,1706717438410,-157.55417846,0.000228,2]
[313070453,1706717438419,-163.29628754,0.00022846,2]
[313070455,1706717438429,-6728.7586,0.00022899,2]
[313070457,1706717438438,-738.1412,0.00022899,2]
[313070459,1706717438447,-163.29628754,0.000229,2]
[313070461,1706717438456,-168.92759637,0.000229,2]
[313070463,1706717438466,-2686.8621723,0.000229,2]
[313070465,1706717438480,-1000.0,0.000229,2]
[313070467,1706717438490,-1678.93501198,0.0002295,2]
[313070469,1706717438500,-169.6225961,0.00022989,2]
[313070471,1706717438509,-1009.90310572,0.00022997,3]
[313070473,1706717438518,-1000.0,0.00022997,2]
[313070475,1706717438526,-191.32395909,0.00022997,2]
[313070477,1706717438535,-4282.43045022,0.00022997,2]
[313070479,1706717438544,-1259.01501309,0.00022997,2]
[313070481,1706717438554,-1206.38010345,0.00022997,2]
[313070483,1706717438562,-362.894322,0.00022997,2]
[313070485,1706717438572,-573.6563421,0.00022997,2]
[313070488,1706717438581,-33439.08205099,0.00022997,2]
[313070490,1706717438591,-1052.66597639,0.00022997,2]
[313070492,1706717438600,-10399.08507756,0.00022997,2]
[313070493,1706717438609,-155.0,0.00022997,2]
[313070496,1706717438618,-385.48677123,0.00022997,2]
[313070497,1706717438628,-5455.78551434,0.00022997,2]
[313070499,1706717438637,-2324.9110879,0.00022997,2]
[313070501,1706717438646,-407.75177551,0.00022998,2]
[313070504,1706717438655,-753.14381819,0.00022998,2]
[313070505,1706717438665,-457.10218469,0.00022998,2]
[313070507,1706717438674,-155.0,0.00022998,2]
[313070510,1706717438683,-5402.62700585,0.00022998,2]
[313070512,1706717438692,-157.52495607,0.00022998,2]
[313070513,1706717438701,-334.30108173,0.00022998,2]
[313070516,1706717438712,-1859.98896207,0.00022998,2]
[313070518,1706717438723,-173.65960248,0.00022998,10]
[313070520,1706717438732,-2449.00912245,0.00022999,3]
[313070521,1706717438741,-278.24383239,0.00022999,2]
[313070524,1706717438751,-155.7995592,0.00022999,2]
[313070526,1706717438760,-2945.16716653,0.00022999,2]
[313070528,1706717438770,-1054.25992044,0.00022999,2]
[313070530,1706717438779,-507115.41887299,0.00022999,2]
[313070532,1706717438789,-500.0,0.00022999,2]
[313070534,1706717438799,-500.0,0.00022999,2]
[313070535,1706717438808,-307.30320988,0.00022999,2]
[313070537,1706717438818,-150.0,0.00022999,2]
[313070539,1706717438827,-150.0,0.00022999,2]
[313070542,1706717438836,-150.0,0.00022999,2]
[313070544,1706717438845,-150.0,0.00022999,2]
[313070546,1706717438854,-150.0,0.00022999,2]
[313070548,1706717438863,-150.0,0.00022999,2]
[313070550,1706717438872,-150.0,0.00022999,2]
[313070552,1706717438883,-150.0,0.00022999,2]
[313070554,1706717438892,-268.80177345,0.00022999,2]
[313070556,1706717438901,-150.0,0.00022999,2]
[313070558,1706717438911,-531769.50067061,0.00023,2]
[313070560,1706717438923,-54049.76540193,0.00023,2]
[313070566,1706717438966,-38795.21036251,0.00023,2]
[313070569,1706717438985,-725.36084865,0.00023,2]
[313070571,1706717439000,-741.27723955,0.00023,2]
[313070573,1706717439012,-420.8888349,0.00023,2]
[313070577,1706717439039,-4141.48759879,0.00023,2]
[313070795,1706717441080,-454.56000002,0.00023,2]
[313070798,1706717441092,-372.545,0.00023,2]
[313070800,1706717441103,-389101.84150868,0.00023,2]
[313070802,1706717441114,-292.84038193,0.00023,2]
[313070804,1706717441125,-481.24256522,0.00023,2]
[313070806,1706717441136,-975.14301314,0.00023,2]
[313070809,1706717441152,-13933.72228322,0.00023,2]
[313070816,1706717441214,-11955.28289608,0.00023,2]
[313070830,1706717441339,-260.8952307,0.00023,2]
[313070832,1706717441351,-34711.52064889,0.00023,2]
[313071004,1706717442993,-283.71427118,0.000229,2]
[313071006,1706717443003,-317.28845347,0.000229,2]
[313071008,1706717443013,-9950.82051828,0.00023,2]
[313071020,1706717443120,-290.49407255,0.00023,2]
[313071028,1706717443181,-5057.98615954,0.00023,2]
[313071030,1706717443192,-11152.19579184,0.00023,2]
[313071036,1706717443240,-1134691.44623237,0.00023,2]
[313071039,1706717443252,-550924.52281496,0.00023,2]
[313071237,1706717445985,-716.45704208,0.00022999,2]
[313071238,1706717445995,-7285.60827487,0.00023,2]
[313071239,1706717446006,-2787.00201009,0.00023,2]
[313071240,1706717447619,-2123703.00563227,0.00023,2]
[313071241,1706717447630,-336595.74056883,0.00023,2]
[313071242,1706717447643,-716.46508955,0.00023,2]
[313071243,1706717447658,-1705.53843548,0.00023,2]
[313071244,1706717447670,-673.14448189,0.00023,2]
[313071245,1706717447681,-7027.80007933,0.00023,2]
[313071246,1706717447694,-1069.51230699,0.00023,2]
[313071247,1706717454538,150.0,0.00022079,2]
[313071248,1706717454563,3032.3620804,0.00022079,2]
[313071249,1706717464586,278.06300269,0.00022079,2]
[313071251,1706717469549,733.09095357,0.00022308,2]
[313071252,1706717471650,1333.70804756,0.00022055,2]
[313071254,1706717499713,157.9404551,0.00022055,2]
[313071258,1706717555975,150.0,0.00022376,2]
[313071260,1706717561888,444.26,0.0002023,2]
[313071261,1706717562125,444.26,0.00022494,2]
[313071262,1706717564578,2000.0,0.00022148,2]
[313071264,1706717584826,204.0,0.00021874,2]
[313071266,1706717601009,150.0,0.00022493,2]
[313071268,1706717631580,34695.2067,0.000225,2]
[313071270,1706717652803,1000.0,0.00021908,2]
[313071272,1706717665393,168.52,0.00021908,2]
[313071274,1706717674005,207.0,0.00021874,2]
[313071275,1706717678311,420.7037701,0.00021694,2]
[313071276,1706717683850,400.0,0.000225,8]
[313071277,1706717684772,381.25,0.00022047,2]
[313071278,1706717684979,381.25,0.00022108,2]
[313071279,1706717685215,381.25,0.00022168,2]
[313071280,1706717685478,381.25,0.00022229,2]
[313071281,1706717685750,381.25,0.00022289,2]
[313071282,1706717685968,381.25,0.00022349,2]
[313071283,1706717686395,381.25,0.0002241,2]
[313071284,1706717686658,381.25,0.0002247,2]
[313071287,1706717723976,374.99,0.0002176,2]
[313071288,1706717728388,250.0,0.00021747,2]
[313071291,1706717772356,190.76,0.00022294,2]
[313071293,1706717774488,329.34,0.0002192,2]
[313071294,1706717782701,214.92979742,0.00022,2]
[313071297,1706717819862,250.0,0.00021918,2]
[313071298,1706717874257,-156.06548771,0.00022501,2]
[313071299,1706717875251,-48.88294144,0.00022501,2]
[313071300,1706717875271,-101.11705856,0.00022501,2]
[313071301,1706717875752,-150.0,0.00022501,2]
[313071302,1706717876290,-150.0,0.00022501,2]
[313071303,1706717876920,834.3564,0.000225,2]
[313071304,1706717877150,-88.42954623,0.00022501,2]
[313071305,1706717877172,-61.57045377,0.00022501,2]
[313071306,1706717878301,525.21369596,0.000225,2]
[313071307,1706717878456,-199.17607269,0.00022501,2]
[313071308,1706717880042,-150.0,0.00022501,2]
[313071309,1706717881045,-8.49416757,0.00022501,2]
[313071310,1706717881068,-141.50583243,0.00022501,2]
[313071311,1706717882011,-150.0,0.00022501,2]
[313071312,1706717882626,-150.0,0.00022501,2]
[313071313,1706717885625,221.04924005,0.000225,2]
[313071314,1706717893380,-85.05601662,0.00022501,2]
[313071315,1706717893401,-64.94398338,0.00022501,2]
[313071316,1706717894186,-150.0,0.00022501,2]
[313071317,1706717894886,-150.0,0.00022501,2]
[313071318,1706717895325,-150.0,0.00022501,2]
[313071320,1706717896579,196.17528664,0.00022,2]
[313071321,1706717898607,155.0,0.000225,2]
[313071322,1706717904772,788.9,0.00021749,2]
[313071323,1706717905837,-66.45405047,0.00022501,2]
[313071324,1706717905863,-83.54594953,0.00022501,2]
[313071325,1706717906072,174.53030463,0.000225,2]
[313071326,1706717906664,-150.0,0.00022501,2]
[313071327,1706717907579,-150.0,0.00022501,2]
[313071328,1706717908156,-150.0,0.00022501,2]
[313071333,1706717912759,266.20026955,0.000225,2]
[313071334,1706717915233,943.04853509,0.000225,2]
[313071335,1706717918788,869.35571098,0.000225,2]
[313071336,1706717923862,583.66541534,0.000225,2]
[313071337,1706717945446,419.24069403,0.000225,2]
[313071338,1706717949382,3587.7994,0.000225,2]
[313071339,1706717949554,83263.0,0.00022314,2]
[313071340,1706717960527,2566.38,0.00021791,2]
[313071341,1706717992796,226.43284198,0.00022403,2]
[313071342,1706717997817,226.4328419,0.00022429,2]
[313071343,1706718002799,226.4328419,0.00022455,2]
[313071344,1706718007816,226.4328419,0.00022481,2]
[313071345,1706718009732,469.13,0.00019848,2]
[313071346,1706718010102,469.13,0.00022112,2]
[313071347,1706718012620,2000.0,0.00021766,2]
[313071349,1706718027925,16809.17941921,0.000225,2]
[313071350,1706718075772,150.0,0.00021704,2]
[313071351,1706718077029,155.0,0.0002,2]
[313071352,1706718082851,168.62644688,5e-05,2]
[313071353,1706718097206,155.0,0.0002,2]
[313071354,1706718097289,200.0,0.00021691,2]
[313071355,1706718112360,155.0,5e-05,2]
[313071356,1706718114417,155.68903356,5.5e-05,2]
[313071357,1706718114911,235.37393543,0.00015,2]
[313071358,1706718115014,155.0,0.0002,2]
[313071359,1706718115341,155.0,5e-05,2]
[313071360,1706718116477,155.0,5e-05,2]
[313071361,1706718118055,155.0,5e-05,2]
[313071362,1706718119167,155.0,5e-05,2]
[313071363,1706718119678,155.25904169,5e-05,2]
[313071364,1706718120231,157.12521251,5e-05,2]
[313071365,1706718122164,155.0,5e-05,2]
[313071366,1706718129892,1035.68155273,0.00015,2]
[313071367,1706718130478,155.0,5e-05,2]
[313071368,1706718134236,155.0,5e-05,2]
[313071369,1706718134284,155.0,5e-05,2]
[313071370,1706718135023,155.0,0.0002,2]
[313071371,1706718135236,155.0,5e-05,2]
[313071372,1706718135886,155.0,5e-05,2]
[313071373,1706718136399,155.0,5.5e-05,2]
[313071374,1706718136927,199.60880723,0.00015,2]
[313071375,1706718139147,155.0,5e-05,2]
[313071376,1706718140152,155.0,5e-05,2]
[313071377,1706718140454,155.0,5e-05,2]
[313071378,1706718147877,163.71228794,0.00015,2]
[313071379,1706718149240,155.0,5e-05,2]
[313071380,1706718150468,155.0,5e-05,2]
[313071381,1706718154335,156.65085918,5e-05,2]
[313071382,1706718155662,155.0,5e-05,2]
[313071383,1706718156411,164.1984089,5.5e-05,2]
[313071384,1706718157169,155.0,5e-05,2]
[313071385,1706718158222,155.0,5e-05,2]
[313071386,1706718158252,157.12521251,5e-05,2]
[313071390,1706718160178,309.95731837,5e-05,2]
[313071391,1706718162385,155.20448562,5e-05,2]
[313071392,1706718166952,228.75,0.00021853,2]
[313071393,1706718167166,228.75,0.00021913,2]
[313071394,1706718167561,228.75,0.00021973,2]
[313071395,1706718167794,228.75,0.00022033,2]
[313071396,1706718168036,228.75,0.00022093,2]
[313071397,1706718168267,228.75,0.00022153,2]
[313071398,1706718168515,228.75,0.00022213,2]
[313071399,1706718168723,228.75,0.00022273,2]
[313071400,1706718168942,228.75,0.00022333,2]
[313071401,1706718169144,228.75,0.00022393,2]
[313071402,1706718169584,228.75,0.00022453,2]
[313071403,1706718170332,250.0,0.000217,2]
[313071404,1706718172217,157.12521251,5e-05,2]
[313071405,1706718173660,186.38902313,5e-05,2]
[313071406,1706718174475,155.0,5e-05,2]
[313071407,1706718175152,155.0,5e-05,2]
[313071408,1706718176242,190.78931201,5e-05,2]
[313071409,1706718177824,155.0,0.0001,2]
[313071410,1706718182506,1080.0264,0.000225,2]
[313071411,1706718192215,157.12521251,5e-05,2]
[313071412,1706718193150,156.01643056,5e-05,2]
[313071413,1706718196473,155.0,5e-05,2]
[313071414,1706718197783,155.0,0.0001,2]
[313071415,1706718207518,957.69421576,0.000225,2]
[313071416,1706718210238,157.12521251,5e-05,2]
[313071417,1706718215895,155.30019509,0.0001,2]
[313071418,1706718219349,187.49,0.00021665,2]
[313071419,1706718225008,156.07,0.00021669,2]
[313071420,1706718236236,157.12521251,5e-05,2]
[313071421,1706718254227,226.80582163,5e-05,2]
[313071422,1706718311890,686.5077,0.000225,2]
[313071423,1706718318067,1005.8816425,0.000225,2]
[313071424,1706718318087,1434.4485575,0.000225,2]
[313071426,1706718340705,250.0,0.00021918,2]
[313071427,1706718352116,2315.5514425,0.00021675,2]
[313071428,1706718352136,4000.0,0.00021675,2]
[313071429,1706718352156,1684.4485575,0.00021675,2]
[313071430,1706718353475,2315.5514425,0.000225,2]
[313071431,1706718353494,4000.0,0.000225,2]
[313071432,1706718353512,4000.0,0.000225,2]
[313071433,1706718353531,4000.0,0.000225,2]
[313071434,1706718353550,4000.0,0.000225,2]
[313071435,1706718353569,4000.0,0.000225,2]
[313071436,1706718353588,4000.0,0.000225,2]
[313071437,1706718353610,4000.0,0.000225,2]
[313071438,1706718353629,4000.0,0.000225,2]
[313071439,1706718353648,4000.0,0.000225,2]
[313071440,1706718353667,4000.0,0.000225,2]
[313071441,1706718353684,4000.0,0.000225,2]
[313071442,1706718353704,4000.0,0.000225,2]
[313071443,1706718353723,2944.1516575,0.000225,2]
[313071444,1706718408920,190.93,0.00021675,2]
[313071445,1706718412155,864.9183425,0.00021675,2]
[313071446,1706718412175,1273.7316575,0.00021675,2]
[313071447,1706718434497,400.0,0.000225,8]
[313071448,1706718444591,1050.0,0.00021689,2]
[313071455,1706718573196,181.14627352,0.00022428,2]
[313071458,1706718578169,181.14627352,0.00022453,2]
[313071459,1706718583297,181.14627352,0.00022478,2]
[313071460,1706718595426,155.0,0.00022502,2]
[313071462,1706718613245,577.82952194,0.000225,2]
[313071463,1706718613264,4000.0,0.000225,2]
[313071464,1706718613283,763.57887806,0.000225,2]
[313071466,1706718632034,-181.14627352,0.00022503,2]
[313071467,1706718632044,-2788.02134693,0.00022512,2]
[313071468,1706718632056,-228.75,0.00022513,2]
[313071469,1706718632065,-187.0,0.00022527,2]
[313071470,1706718632074,-150.0,0.00022527,2]
[313071471,1706718632083,-181.14627352,0.00022527,2]
[313071472,1706718632093,-19049.43084003,0.00022528,2]
[313071473,1706718632102,-20538.6007938,0.00022529,2]
[313071474,1706718632111,-499.99,0.00022531,2]
[313071475,1706718632121,-150.99,0.00022531,2]
[313071476,1706718632130,-493.07102442,0.00022537,2]
[313071477,1706718632139,-181.14627352,0.00022552,2]
[313071478,1706718632148,-228.75,0.00022573,2]
[313071479,1706718632157,-181.14627352,0.00022577,2]
[313071480,1706718632168,-384.66969793,0.00022581,2]
[313071481,1706718632179,-835.97,0.00022591,2]
[313071482,1706718632189,-319.62,0.00022591,2]
[313071483,1706718632198,-904.78133764,0.00022598,2]
[313071484,1706718632208,-773.92350214,0.00022598,2]
[313071485,1706718632217,-1761.2351666,0.00022598,2]
[313071486,1706718632227,-2586.31421406,0.00022598,2]
[313071487,1706718632236,-202.18313352,0.00022598,2]
[313071488,1706718632245,-385.22896696,0.00022598,2]
[313071489,1706718632254,-268.48612961,0.00022598,2]
[313071490,1706718632264,-489.7692849,0.00022598,2]
[313071491,1706718632273,-522.6703822,0.00022598,2]
[313071492,1706718632282,-296.22914882,0.00022598,2]
[313071493,1706718632291,-278.06640714,0.00022598,2]
[313071494,1706718632300,-174.30935489,0.00022598,2]
[313071495,1706718632310,-676.98129538,0.00022598,2]
[313071496,1706718632319,-497.67511841,0.00022598,2]
[313071497,1706718632328,-263.96037006,0.00022598,2]
[313071498,1706718632338,-748.95311535,0.00022598,2]
[313071499,1706718632347,-534.74193718,0.00022598,2]
[313071500,1706718632357,-489.30479157,0.00022598,2]
[313071501,1706718632366,-3843.76724485,0.00022598,2]
[313071503,1706718632375,-2269.24,0.00022598,2]
[313071505,1706718632385,-1000.0,0.00022598,2]
[313071507,1706718632394,-155.0,0.00022598,2]
[313071509,1706718632403,-21692.05222946,0.00022599,2]
[313071511,1706718632412,-156.28486914,0.00022599,2]
[313071513,1706718632424,-509.928043,0.00022599,2]
[313071515,1706718632433,-215.39954746,0.00022599,2]
[313071517,1706718632442,-127535.18152037,0.000226,2]
[313071519,1706718632451,-800.0,0.000226,8]
[313071521,1706718632461,-181.14627352,0.00022602,2]
[313071523,1706718632470,-181.14627352,0.00022627,2]
[313071525,1706718632479,-228.75,0.00022633,2]
[313071527,1706718632488,-181.14627352,0.00022652,2]
[313071529,1706718632498,-389.28032267,0.00022668,2]
[313071531,1706718632507,-160.7240338,0.00022668,2]
[313071533,1706718632516,-181.14627352,0.00022676,2]
[313071535,1706718632525,-205.0,0.00022686,2]
[313071537,1706718632534,-228.75,0.00022693,2]
[313071539,1706718632544,-1824.0,0.000227,2]
[313071541,1706718632553,-1200.0,0.000227,8]
[313071543,1706718632562,-181.14627352,0.00022701,2]
[313071545,1706718632572,-800.0,0.0002271,2]
[313071547,1706718632581,-3083.66523063,0.00022733,2]
[313071549,1706718632590,-800.0,0.0002274,2]
[313071551,1706718632599,-228.75,0.00022752,2]
[313071553,1706718632608,-151.12841013,0.00022757,2]
[313071555,1706718632617,-264.54174673,0.00022765,2]
[313071557,1706718632627,-290.58226449,0.00022765,2]
[313071559,1706718632637,-1314.34619619,0.00022765,2]
[313071562,1706718632647,-155.0,0.00022765,2]
[313071564,1706718632657,-1286.39280938,0.00022765,2]
[313071566,1706718632667,-195.34051282,0.00022765,2]
[313071568,1706718632676,-1812.47964369,0.00022765,2]
[313071570,1706718632686,-418.69875157,0.00022765,2]
[313071572,1706718632695,-3229.82512965,0.00022765,2]
[313071574,1706718632707,-235.21914476,0.00022765,2]
[313071576,1706718632716,-156.55592593,0.00022765,2]
[313071578,1706718632725,-4148.72739539,0.00022765,2]
[313071580,1706718632735,-102276.95660551,0.00022767,2]
[313071582,1706718632748,-1699.56,0.00022767,2]
[313071584,1706718632759,-1302.9344,0.00022767,2]
[313071587,1706718632770,-5027.92397444,0.00022767,2]
[313071590,1706718632793,-236524.30651738,0.00022767,2]
[313071592,1706718632804,-258.75,0.00022767,2]
[313071595,1706718632824,-1550.3468,0.00022767,2]
[313071597,1706718632835,-9421.42134927,0.00022767,2]
[313071600,1706718632846,-267.3,0.00022767,2]
[313071602,1706718632857,-2133.7925293,0.00022767,2]
[313071604,1706718632868,-169485.15194262,0.00022767,2]
[313071606,1706718632878,-280.13227264,0.00022768,2]
[313071608,1706718632888,-160.72403378,0.00022783,2]
[313071610,1706718632897,-1600.0,0.000228,8]
[313071612,1706718632906,-228.75,0.00022812,2]
[313071614,1706718632916,-500.0,0.00022816,2]
[313071616,1706718632925,-788.9,0.00022837,2]
[313071618,1706718632934,-228.75,0.00022872,2]
[313071620,1706718632944,-160.24600712,0.00022897,2]
[313071622,1706718632954,-160.72403378,0.00022897,2]
[313071624,1706718632964,-2224.1399,0.000229,2]
[313071625,1706718632973,-164.53901351,0.000229,2]
[313071626,1706718632983,-376.65462196,0.000229,2]
[313071627,1706718632992,-354.63788628,0.000229,2]
[313071628,1706718633001,-173.38532493,0.000229,2]
[313071629,1706718633011,-2000.0,0.000229,8]
[313071630,1706718633020,-150.0,0.00022916,2]
[313071631,1706718633029,-228.75,0.00022932,2]
[313071632,1706718633038,-150.0,0.00022941,2]
[313071633,1706718633048,-150.0,0.00022948,2]
[313071634,1706718633057,-151.12841013,0.0002299,2]
[313071635,1706718633066,-228.75,0.00022992,2]
[313071636,1706718633075,-155.55451817,0.00022995,2]
[313071637,1706718633084,-180.80090215,0.00022995,2]
[313071638,1706718633093,-156.05286893,0.00022995,2]
[313071639,1706718633102,-242.57766455,0.00022995,2]
[313071640,1706718633112,-177.76017046,0.00022995,2]
[313071641,1706718633121,-161.56475026,0.00022995,2]
[313071642,1706718633130,-156.28850165,0.00022995,2]
[313071643,1706718633139,-526.48716042,0.00022995,2]
[313071644,1706718633149,-162.11132826,0.00022996,2]
[313071645,1706718633158,-155.36300577,0.00022996,2]
[313071646,1706718633167,-288.37864318,0.00022996,2]
[313071647,1706718633176,-590.59238423,0.00022997,2]
[313071648,1706718633185,-187.1983231,0.00022997,2]
[313071649,1706718633194,-173.51625013,0.00022997,2]
[313071650,1706718633203,-157.40442325,0.00022997,2]
[313071651,1706718633213,-176.01932869,0.00022997,2]
[313071652,1706718633222,-228.11729698,0.00022997,2]
[313071653,1706718633231,-155.50939036,0.00022997,2]
[313071654,1706718633240,-390.94311427,0.00022997,2]
[313071655,1706718633249,-1288.50773231,0.00022997,2]
[313071656,1706718633258,-155.43398215,0.00022997,2]
[313071657,1706718633267,-1050.01826432,0.00022997,2]
[313071658,1706718633276,-923.07697228,0.00022997,2]
[313071659,1706718633285,-172.25199491,0.00022997,2]
[313071660,1706718633294,-1762.41086594,0.00022997,2]
[313071661,1706718633303,-248.62540543,0.00022997,2]
[313071662,1706718633312,-194.04789293,0.00022997,2]
[313071663,1706718633321,-207.05527583,0.00022997,2]
[313071664,1706718633330,-291.23571618,0.00022997,2]
[313071665,1706718633340,-941.78794294,0.00022997,2]